{"text_format":"1","workbook":"xlsx","n_sheets":10,"sheets":["スケジュール","日付","担当者","状況","進捗率","祝日","休日","【PR】クラウドリィのサービス","【ダウンロード】便利なExcelテンプレート","【その他】ノウハウ集"],"not_rendered":{"charts":0,"images":4,"macros":1,"external_links":0,"defined_names":3,"comments":0,"pivot_tables":0},"unopened":[],"bounds":{"document_bytes":16777216,"sheet_cells":100000,"rows_first":2000,"rows_last":500,"rows_between":2000,"halvings":0,"cell_chars":16384,"cell_head_chars":4096},"cells_cut":0,"cells_raw":0,"read":"whole","date_system":"1900"}

{"sheet":"スケジュール","index":0,"n_rows":106,"n_cols":9,"rows_kept":106,"cut":false,"hidden":false,"merged":[[79,2,79,3],[80,2,80,3],[81,2,81,3],[82,2,82,3],[83,2,83,3],[84,2,84,3],[70,2,70,3],[71,2,71,3],[72,2,72,3],[73,2,73,3],[74,2,74,3],[75,2,75,3],[76,2,76,3],[77,2,77,3],[78,2,78,3],[67,2,67,3],[68,2,68,3],[69,2,69,3],[105,2,105,3],[85,2,85,3],[86,2,86,3],[87,2,87,3],[88,2,88,3],[89,2,89,3],[90,2,90,3],[91,2,91,3],[92,2,92,3],[93,2,93,3],[94,2,94,3],[95,2,95,3],[101,2,101,3],[102,2,102,3],[103,2,103,3],[104,2,104,3],[96,2,96,3],[97,2,97,3],[98,2,98,3],[99,2,99,3],[100,2,100,3],[62,2,62,3],[63,2,63,3],[64,2,64,3],[65,2,65,3],[66,2,66,3],[57,2,57,3],[58,2,58,3],[59,2,59,3],[60,2,60,3],[61,2,61,3],[52,2,52,3],[53,2,53,3],[54,2,54,3],[55,2,55,3],[56,2,56,3],[47,2,47,3],[48,2,48,3],[49,2,49,3],[50,2,50,3],[51,2,51,3],[42,2,42,3],[43,2,43,3],[44,2,44,3],[45,2,45,3],[46,2,46,3],[37,2,37,3],[38,2,38,3],[39,2,39,3],[40,2,40,3],[41,2,41,3],[4,5,5,5],[4,6,5,6],[3,8,5,8],[3,1,5,1],[0,1,1,2],[3,5,3,6],[0,6,1,6],[0,7,0,8],[1,7,1,8],[0,3,1,5],[21,2,21,3],[10,2,10,3],[11,2,11,3],[12,2,12,3],[13,2,13,3],[3,4,5,4],[3,2,5,3],[6,2,6,3],[7,2,7,3],[8,2,8,3],[9,2,9,3],[3,0,5,0],[3,7,5,7],[36,2,36,3],[35,2,35,3],[34,2,34,3],[31,2,31,3],[32,2,32,3],[33,2,33,3],[22,2,22,3],[23,2,23,3],[24,2,24,3],[25,2,25,3],[26,2,26,3],[27,2,27,3],[28,2,28,3],[29,2,29,3],[30,2,30,3],[14,2,14,3],[15,2,15,3],[16,2,16,3],[17,2,17,3],[18,2,18,3],[19,2,19,3],[20,2,20,3]]}
[null,"プロジェクト名",null,null,null,null,"期間"]
[]
[]
["★バーの形式指定","No.","作業名",null,"担当者","期間",null,"進捗率","状況"]
[null,null,null,null,null,"開始日","終了日"]
[]
["タスク",{"$f":"ROW() - 6","v":1}]
["タスク",{"$f":"ROW() - 6","v":2}]
["タスク",{"$f":"ROW() - 6","v":3}]
["タスク",4]
["タスク",5]
["タスク",6]
["タスク",7]
["タスク",8]
["タスク",9]
["タスク",10]
["タスク",11]
["タスク",12]
["タスク",13]
["タスク",14]
["タスク",15]
["タスク",16]
["タスク",17]
["タスク",18]
["タスク",19]
["タスク",20]
["タスク",21]
["タスク",22]
["タスク",23]
["タスク",24]
["タスク",25]
["タスク",26]
["タスク",27]
["タスク",28]
["タスク",29]
["タスク",30]
["タスク",31]
["タスク",32]
["タスク",33]
[null,34]
[null,35]
[null,36]
[null,37]
[null,38]
[null,39]
[null,40]
[null,41]
[null,42]
[null,43]
[null,44]
[null,45]
[null,46]
[null,47]
[null,48]
[null,49]
[null,50]
[null,51]
[null,52]
[null,53]
[null,54]
[null,55]
[null,56]
[null,57]
[null,58]
[null,59]
[null,60]
[null,61]
[null,62]
[null,63]
[null,64]
[null,65]
[null,66]
[null,{"$f":"ROW() - 6","v":67}]
[null,68]
[null,69]
[null,70]
[null,71]
[null,72]
[null,73]
[null,74]
[null,75]
[null,76]
[null,77]
[null,78]
[null,79]
[null,80]
[null,81]
[null,82]
[null,83]
[null,84]
[null,85]
[null,86]
[null,87]
[null,88]
[null,89]
[null,90]
[null,91]
[null,92]
[null,93]
[null,94]
[null,95]
[null,96]
[null,97]
[null,98]
[null,99]
[null,100]

{"sheet":"日付","index":1,"n_rows":367,"n_cols":4,"rows_kept":367,"cut":false,"hidden":false,"merged":[]}
["日付",null,null,"★使用する日付をB列のリストに記載します"]
[null,"2024-01-01"]
[null,"2024-01-02"]
[null,"2024-01-03"]
[null,"2024-01-04"]
[null,"2024-01-05"]
[null,"2024-01-06"]
[null,"2024-01-07"]
[null,"2024-01-08"]
[null,"2024-01-09"]
[null,"2024-01-10"]
[null,"2024-01-11"]
[null,"2024-01-12"]
[null,"2024-01-13"]
[null,"2024-01-14"]
[null,"2024-01-15"]
[null,"2024-01-16"]
[null,"2024-01-17"]
[null,"2024-01-18"]
[null,"2024-01-19"]
[null,"2024-01-20"]
[null,"2024-01-21"]
[null,"2024-01-22"]
[null,"2024-01-23"]
[null,"2024-01-24"]
[null,"2024-01-25"]
[null,"2024-01-26"]
[null,"2024-01-27"]
[null,"2024-01-28"]
[null,"2024-01-29"]
[null,"2024-01-30"]
[null,"2024-01-31"]
[null,"2024-02-01"]
[null,"2024-02-02"]
[null,"2024-02-03"]
[null,"2024-02-04"]
[null,"2024-02-05"]
[null,"2024-02-06"]
[null,"2024-02-07"]
[null,"2024-02-08"]
[null,"2024-02-09"]
[null,"2024-02-10"]
[null,"2024-02-11"]
[null,"2024-02-12"]
[null,"2024-02-13"]
[null,"2024-02-14"]
[null,"2024-02-15"]
[null,"2024-02-16"]
[null,"2024-02-17"]
[null,"2024-02-18"]
[null,"2024-02-19"]
[null,"2024-02-20"]
[null,"2024-02-21"]
[null,"2024-02-22"]
[null,"2024-02-23"]
[null,"2024-02-24"]
[null,"2024-02-25"]
[null,"2024-02-26"]
[null,"2024-02-27"]
[null,"2024-02-28"]
[null,"2024-02-29"]
[null,"2024-03-01"]
[null,"2024-03-02"]
[null,"2024-03-03"]
[null,"2024-03-04"]
[null,"2024-03-05"]
[null,"2024-03-06"]
[null,"2024-03-07"]
[null,"2024-03-08"]
[null,"2024-03-09"]
[null,"2024-03-10"]
[null,"2024-03-11"]
[null,"2024-03-12"]
[null,"2024-03-13"]
[null,"2024-03-14"]
[null,"2024-03-15"]
[null,"2024-03-16"]
[null,"2024-03-17"]
[null,"2024-03-18"]
[null,"2024-03-19"]
[null,"2024-03-20"]
[null,"2024-03-21"]
[null,"2024-03-22"]
[null,"2024-03-23"]
[null,"2024-03-24"]
[null,"2024-03-25"]
[null,"2024-03-26"]
[null,"2024-03-27"]
[null,"2024-03-28"]
[null,"2024-03-29"]
[null,"2024-03-30"]
[null,"2024-03-31"]
[null,"2024-04-01"]
[null,"2024-04-02"]
[null,"2024-04-03"]
[null,"2024-04-04"]
[null,"2024-04-05"]
[null,"2024-04-06"]
[null,"2024-04-07"]
[null,"2024-04-08"]
[null,"2024-04-09"]
[null,"2024-04-10"]
[null,"2024-04-11"]
[null,"2024-04-12"]
[null,"2024-04-13"]
[null,"2024-04-14"]
[null,"2024-04-15"]
[null,"2024-04-16"]
[null,"2024-04-17"]
[null,"2024-04-18"]
[null,"2024-04-19"]
[null,"2024-04-20"]
[null,"2024-04-21"]
[null,"2024-04-22"]
[null,"2024-04-23"]
[null,"2024-04-24"]
[null,"2024-04-25"]
[null,"2024-04-26"]
[null,"2024-04-27"]
[null,"2024-04-28"]
[null,"2024-04-29"]
[null,"2024-04-30"]
[null,"2024-05-01"]
[null,"2024-05-02"]
[null,"2024-05-03"]
[null,"2024-05-04"]
[null,"2024-05-05"]
[null,"2024-05-06"]
[null,"2024-05-07"]
[null,"2024-05-08"]
[null,"2024-05-09"]
[null,"2024-05-10"]
[null,"2024-05-11"]
[null,"2024-05-12"]
[null,"2024-05-13"]
[null,"2024-05-14"]
[null,"2024-05-15"]
[null,"2024-05-16"]
[null,"2024-05-17"]
[null,"2024-05-18"]
[null,"2024-05-19"]
[null,"2024-05-20"]
[null,"2024-05-21"]
[null,"2024-05-22"]
[null,"2024-05-23"]
[null,"2024-05-24"]
[null,"2024-05-25"]
[null,"2024-05-26"]
[null,"2024-05-27"]
[null,"2024-05-28"]
[null,"2024-05-29"]
[null,"2024-05-30"]
[null,"2024-05-31"]
[null,"2024-06-01"]
[null,"2024-06-02"]
[null,"2024-06-03"]
[null,"2024-06-04"]
[null,"2024-06-05"]
[null,"2024-06-06"]
[null,"2024-06-07"]
[null,"2024-06-08"]
[null,"2024-06-09"]
[null,"2024-06-10"]
[null,"2024-06-11"]
[null,"2024-06-12"]
[null,"2024-06-13"]
[null,"2024-06-14"]
[null,"2024-06-15"]
[null,"2024-06-16"]
[null,"2024-06-17"]
[null,"2024-06-18"]
[null,"2024-06-19"]
[null,"2024-06-20"]
[null,"2024-06-21"]
[null,"2024-06-22"]
[null,"2024-06-23"]
[null,"2024-06-24"]
[null,"2024-06-25"]
[null,"2024-06-26"]
[null,"2024-06-27"]
[null,"2024-06-28"]
[null,"2024-06-29"]
[null,"2024-06-30"]
[null,"2024-07-01"]
[null,"2024-07-02"]
[null,"2024-07-03"]
[null,"2024-07-04"]
[null,"2024-07-05"]
[null,"2024-07-06"]
[null,"2024-07-07"]
[null,"2024-07-08"]
[null,"2024-07-09"]
[null,"2024-07-10"]
[null,"2024-07-11"]
[null,"2024-07-12"]
[null,"2024-07-13"]
[null,"2024-07-14"]
[null,"2024-07-15"]
[null,"2024-07-16"]
[null,"2024-07-17"]
[null,"2024-07-18"]
[null,"2024-07-19"]
[null,"2024-07-20"]
[null,"2024-07-21"]
[null,"2024-07-22"]
[null,"2024-07-23"]
[null,"2024-07-24"]
[null,"2024-07-25"]
[null,"2024-07-26"]
[null,"2024-07-27"]
[null,"2024-07-28"]
[null,"2024-07-29"]
[null,"2024-07-30"]
[null,"2024-07-31"]
[null,"2024-08-01"]
[null,"2024-08-02"]
[null,"2024-08-03"]
[null,"2024-08-04"]
[null,"2024-08-05"]
[null,"2024-08-06"]
[null,"2024-08-07"]
[null,"2024-08-08"]
[null,"2024-08-09"]
[null,"2024-08-10"]
[null,"2024-08-11"]
[null,"2024-08-12"]
[null,"2024-08-13"]
[null,"2024-08-14"]
[null,"2024-08-15"]
[null,"2024-08-16"]
[null,"2024-08-17"]
[null,"2024-08-18"]
[null,"2024-08-19"]
[null,"2024-08-20"]
[null,"2024-08-21"]
[null,"2024-08-22"]
[null,"2024-08-23"]
[null,"2024-08-24"]
[null,"2024-08-25"]
[null,"2024-08-26"]
[null,"2024-08-27"]
[null,"2024-08-28"]
[null,"2024-08-29"]
[null,"2024-08-30"]
[null,"2024-08-31"]
[null,"2024-09-01"]
[null,"2024-09-02"]
[null,"2024-09-03"]
[null,"2024-09-04"]
[null,"2024-09-05"]
[null,"2024-09-06"]
[null,"2024-09-07"]
[null,"2024-09-08"]
[null,"2024-09-09"]
[null,"2024-09-10"]
[null,"2024-09-11"]
[null,"2024-09-12"]
[null,"2024-09-13"]
[null,"2024-09-14"]
[null,"2024-09-15"]
[null,"2024-09-16"]
[null,"2024-09-17"]
[null,"2024-09-18"]
[null,"2024-09-19"]
[null,"2024-09-20"]
[null,"2024-09-21"]
[null,"2024-09-22"]
[null,"2024-09-23"]
[null,"2024-09-24"]
[null,"2024-09-25"]
[null,"2024-09-26"]
[null,"2024-09-27"]
[null,"2024-09-28"]
[null,"2024-09-29"]
[null,"2024-09-30"]
[null,"2024-10-01"]
[null,"2024-10-02"]
[null,"2024-10-03"]
[null,"2024-10-04"]
[null,"2024-10-05"]
[null,"2024-10-06"]
[null,"2024-10-07"]
[null,"2024-10-08"]
[null,"2024-10-09"]
[null,"2024-10-10"]
[null,"2024-10-11"]
[null,"2024-10-12"]
[null,"2024-10-13"]
[null,"2024-10-14"]
[null,"2024-10-15"]
[null,"2024-10-16"]
[null,"2024-10-17"]
[null,"2024-10-18"]
[null,"2024-10-19"]
[null,"2024-10-20"]
[null,"2024-10-21"]
[null,"2024-10-22"]
[null,"2024-10-23"]
[null,"2024-10-24"]
[null,"2024-10-25"]
[null,"2024-10-26"]
[null,"2024-10-27"]
[null,"2024-10-28"]
[null,"2024-10-29"]
[null,"2024-10-30"]
[null,"2024-10-31"]
[null,"2024-11-01"]
[null,"2024-11-02"]
[null,"2024-11-03"]
[null,"2024-11-04"]
[null,"2024-11-05"]
[null,"2024-11-06"]
[null,"2024-11-07"]
[null,"2024-11-08"]
[null,"2024-11-09"]
[null,"2024-11-10"]
[null,"2024-11-11"]
[null,"2024-11-12"]
[null,"2024-11-13"]
[null,"2024-11-14"]
[null,"2024-11-15"]
[null,"2024-11-16"]
[null,"2024-11-17"]
[null,"2024-11-18"]
[null,"2024-11-19"]
[null,"2024-11-20"]
[null,"2024-11-21"]
[null,"2024-11-22"]
[null,"2024-11-23"]
[null,"2024-11-24"]
[null,"2024-11-25"]
[null,"2024-11-26"]
[null,"2024-11-27"]
[null,"2024-11-28"]
[null,"2024-11-29"]
[null,"2024-11-30"]
[null,"2024-12-01"]
[null,"2024-12-02"]
[null,"2024-12-03"]
[null,"2024-12-04"]
[null,"2024-12-05"]
[null,"2024-12-06"]
[null,"2024-12-07"]
[null,"2024-12-08"]
[null,"2024-12-09"]
[null,"2024-12-10"]
[null,"2024-12-11"]
[null,"2024-12-12"]
[null,"2024-12-13"]
[null,"2024-12-14"]
[null,"2024-12-15"]
[null,"2024-12-16"]
[null,"2024-12-17"]
[null,"2024-12-18"]
[null,"2024-12-19"]
[null,"2024-12-20"]
[null,"2024-12-21"]
[null,"2024-12-22"]
[null,"2024-12-23"]
[null,"2024-12-24"]
[null,"2024-12-25"]
[null,"2024-12-26"]
[null,"2024-12-27"]
[null,"2024-12-28"]
[null,"2024-12-29"]
[null,"2024-12-30"]
[null,"2024-12-31"]

{"sheet":"担当者","index":2,"n_rows":6,"n_cols":4,"rows_kept":6,"cut":false,"hidden":false,"merged":[]}
["担当者",null,null,"★担当者をB列のリストに記載します"]
[null,"担当者１",null,"★担当者の背景色がスケジュールに反映されます"]
[null,"担当者２"]
[null,"担当者３"]
[null,"担当者４"]
[null,"担当者５"]

{"sheet":"状況","index":3,"n_rows":6,"n_cols":4,"rows_kept":6,"cut":false,"hidden":false,"merged":[]}
["状況",null,null,"★使用する「状況」をB列のリストに記載します"]
[null,"未実施",null,"★状況の背景色がスケジュールに反映されます"]
[null,"TODO"]
[null,"実施中"]
[null,"遅れ"]
[null,"完了"]

{"sheet":"進捗率","index":4,"n_rows":12,"n_cols":4,"rows_kept":12,"cut":false,"hidden":false,"merged":[]}
["進捗率",null,null,"★0%～100%の進捗率をB列のリストに記載します"]
[null,0,null,"★スケジュールの「進捗率」に使用できます"]
[null,0.1]
[null,0.2]
[null,0.3]
[null,0.4]
[null,0.5]
[null,0.6]
[null,0.7]
[null,0.8]
[null,0.9]
[null,1]

{"sheet":"祝日","index":5,"n_rows":21,"n_cols":8,"rows_kept":21,"cut":false,"hidden":false,"merged":[]}
["祝日","2024-01-01","元日",null,null,"■参考）2024年の祝日"]
[null,"2024-01-08","成人の日",null,null,null,"（内閣府）「国民の祝日」について"]
[null,"2024-02-11","建国記念の日",null,null,null,"https://www8.cao.go.jp/chosei/shukujitsu/gaiyou.html"]
[null,"2024-02-12","休日","祝日法第3条第2項による休日",null,null,null,"〇令和6年（2024年）の国民の祝日・休日"]
[null,"2024-02-23","天皇誕生日"]
[null,"2024-03-20","春分の日"]
[null,"2024-04-29","昭和の日"]
[null,"2024-05-03","憲法記念日"]
[null,"2024-05-04","みどりの日"]
[null,"2024-05-05","こどもの日"]
[null,"2024-05-06","休日","祝日法第3条第2項による休日"]
[null,"2024-07-15","海の日"]
[null,"2024-08-11","山の日"]
[null,"2024-08-12","休日","祝日法第3条第2項による休日"]
[null,"2024-09-16","敬老の日"]
[null,"2024-09-22","秋分の日"]
[null,"2024-09-23","休日","祝日法第3条第2項による休日"]
[null,"2024-10-14","スポーツの日"]
[null,"2024-11-03","文化の日"]
[null,"2024-11-04","休日","祝日法第3条第2項による休日"]
[null,"2024-11-23","勤労感謝の日"]

{"sheet":"休日","index":6,"n_rows":1,"n_cols":6,"rows_kept":1,"cut":false,"hidden":false,"merged":[]}
["休日",null,null,null,null,"★B列に休日とする日を指定してください"]

{"sheet":"【PR】クラウドリィのサービス","index":7,"n_rows":64,"n_cols":3,"rows_kept":64,"cut":false,"hidden":false,"merged":[]}
["■１０年日記プラス"]
[null,"仕事で成功する多くの人が日記を書いていると言われています。"]
[]
[null,"１０年日記とは、１０年分の日記を１冊の日記帳に書くスタイルの連用日記です。"]
[null,"日記を書くことで、心が穏やかになり、夢が実現します。"]
[]
[null,"ご利用料金は、全機能『無料』です。"]
[]
[null,"□オフィシャルページ（お申し込みはこちら）"]
[null,null,"https://10ydiary.com/?ref=excel_template"]
[]
[null,"□こんな方にお勧め"]
[null,null,"・自分を変えたいと思っている"]
[null,null,"・成長したいと思っている"]
[null,null,"・ビジネスやダイエットなどで成果を上げたいと思っている"]
[null,null,"・何をしたいのか分からない"]
[null,null,"・考えが整理できていない"]
[null,null,"・自分に自信が持てない"]
[]
[null,"□１０年日記プラスの機能"]
[null,null,"・優れたWeb10年日記で、去年の今日、おととしの今日を振り返る事ができます"]
[null,null,"・全機能スマホに対応しています。パソコンでも、タブレットでも操作方法は同じです"]
[null,null,"・写真日記を付けることができます"]
[null,null,"・体重・BMI・ジョギングなど記録を残すことができます"]
[null,null,"・記録はグラフで確認することができます"]
[null,null,"・付箋メモ機能で目標を書いて読み返すことができます"]
[]
["■Plusプロジェクトマネージャー"]
[null,"PlusプロジェクトマネージャーならExcelで行っている様々な業務をWebで効率化します"]
[]
[null,"□オフィシャルページ（お申し込みはこちら）"]
[null,null,"https://plus-pm.jp/?ref=excel_template"]
[]
[null,"□主な機能"]
[null,null,"・プロジェクト管理"]
[null,null,"・課題管理／作業進捗管理"]
[null,null,"・スケジュール管理（ガントチャート）"]
[null,null,"・ファイル共有・履歴管理"]
[null,null,"・業務日報"]
[null,null,"・コミュニケーション・活動履歴"]
[]
[null,"□Plusプロジェクトマネージャーを利用すると"]
[null,null,"・作業の計画・アサイン・進捗管理がすべてWeb上で実施できます"]
[null,null,"・子プロジェクトを利用して種類の違う課題リストを別々に管理できます"]
[null,null,"・作業がデータ化されているので、自動でスケジュール（ガントチャート）を作成できます"]
[null,null,"・ファイル履歴管理機能でExcelでの業務を効率的にバックアップ"]
[null,null,"・課題の更新履歴・担当者間のコメントのやり取りもすべて記録"]
[]
["■株式会社クラウドリィ"]
[]
[null,"□HP"]
[null,null,"https://www.cloudly.co.jp/?ref=excel_template"]
[]
[null,"□管理人プロフィール"]
[]
[]
[]
[]
[]
[]
[]
[null,null,"今村 誠雄（いまむら まさお）"]
[null,null,"Plusプロジェクトマネージャー管理人"]
[null,null,"https://plus-pm.jp/manager/?ref=excel_template"]

{"sheet":"【ダウンロード】便利なExcelテンプレート","index":8,"n_rows":167,"n_cols":4,"rows_kept":167,"cut":false,"hidden":false,"merged":[]}
["■Plusプロジェクトマネージャーでは、ビジネスですぐに使える便利なExcelテンプレートを配布しています"]
[]
[null,"□タスク管理"]
[null,null,"【タスク管理】Excel・個人向け・シンプル"]
[null,null,null,"https://plus-pm.jp/blog/task-list-excel-simple-for-person/?ref=excel_template"]
[null,null,"【タスク管理】Excel・チーム向け・シンプル"]
[null,null,null,"https://plus-pm.jp/blog/task-list-excel-simple-for-team/?ref=excel_template"]
[null,null,"【タスク管理】Excel・個人向け・進捗率・完了表示"]
[null,null,null,"https://plus-pm.jp/blog/task-list-excel-for-person-with-progress/?ref=excel_template"]
[null,null,"【タスク管理】Excel・チーム向け・進捗率・完了表示"]
[null,null,null,"https://plus-pm.jp/blog/task-list-excel-for-team-with-progress/?ref=excel_template"]
[]
[null,"□TODOリスト"]
[null,null,"【TODOリスト】進捗表示・サンプル・手順付き"]
[null,null,null,"https://plus-pm.jp/blog/todo-list-excel/?ref=excel_template"]
[]
[null,"□課題管理"]
[null,null,"【課題管理表】Excel・シンプル・小規模プロジェクト向け・入力補助付き"]
[null,null,null,"https://plus-pm.jp/blog/issue-list-excel-simple/?ref=excel_template"]
[null,null,"【課題管理表】Excel・ワークフロー付き・入力補助付き"]
[null,null,null,"https://plus-pm.jp/blog/issue-list-excel/?ref=excel_template"]
[]
[null,"□バグ管理"]
[null,null,"【バグ管理表】Excel・シンプル・実施管理・印刷向け"]
[null,null,null,"https://plus-pm.jp/blog/bug-report-excel-simple/?ref=excel_template"]
[null,null,"【バグ管理表】Excel・ワークフロー・集計表付き付き"]
[null,null,null,"https://plus-pm.jp/blog/bug-report-excel/?ref=excel_template"]
[]
[null,"□テストケース"]
[null,null,"【テストケース】Excel・単体テスト"]
[null,null,null,"https://plus-pm.jp/blog/test-case-excel-unit-test/?ref=excel_template"]
[null,null,"【テストケース】Excel・結合テスト"]
[null,null,null,"https://plus-pm.jp/blog/test-case-excel-integration-test/?ref=excel_template"]
[null,null,"【テストケース】Excel・システムテスト"]
[null,null,null,"https://plus-pm.jp/blog/test-case-excel-system-test/?ref=excel_template"]
[]
[null,"□スケジュール管理"]
[null,null,"【ガントチャート】Excel・日単位"]
[null,null,null,"https://plus-pm.jp/blog/gantt-excel-daily/?ref=excel_template"]
[null,null,"【ガントチャート】Excel・週単位"]
[null,null,null,"https://plus-pm.jp/blog/gantt-excel-weekly/?ref=excel_template"]
[null,null,"【ガントチャート】Excel・月単位"]
[null,null,null,"https://plus-pm.jp/blog/gantt-excel-monthly/?ref=excel_template"]
[null,null,"【印刷用】建築工事向けエクセル工程表"]
[null,null,null,"https://plus-pm.jp/blog/work-schedule-excel-daily-for-print/?ref=excel_template"]
[null,null,"【横リスト形式】カレンダー・日単位"]
[null,null,null,"https://plus-pm.jp/blog/calendar-excel-horizontal-day-list/?ref=excel_template"]
[null,null,"【QA式】EXCELできれいなガントチャートを書くためのTIPS"]
[null,null,null,"https://plus-pm.jp/blog/gantt-excel-brushup-tips/?ref=excel_template"]
[]
[null,"□旅行日程表"]
[null,null,"【旅行日程表】日帰り・タテ用紙・リスト形式"]
[null,null,null,"https://plus-pm.jp/blog/trip-schedule-excel-vertical-1day/?ref=excel_template"]
[null,null,"【旅行日程表】１泊２日・タテ用紙・リスト形式"]
[null,null,null,"https://plus-pm.jp/blog/trip-schedule-excel-vertical-2days/?ref=excel_template"]
[null,null,"【旅行日程表】２泊３日・タテ用紙・リスト形式"]
[null,null,null,"https://plus-pm.jp/blog/trip-schedule-excel-vertical-3days/?ref=excel_template"]
[null,null,"【旅行日程表】３泊４日・タテ用紙・リスト形式"]
[null,null,null,"https://plus-pm.jp/blog/trip-schedule-excel-vertical-4days/?ref=excel_template"]
[null,null,"【旅行日程表】４泊５日・タテ用紙・リスト形式"]
[null,null,null,"https://plus-pm.jp/blog/trip-schedule-excel-vertical-5days/?ref=excel_template"]
[null,null,"【旅行日程表】（WORDテンプレート）日帰り・ヨコ用紙・フロー形式"]
[null,null,null,"https://plus-pm.jp/blog/trip-schedule-word-1day/?ref=excel_template"]
[null,null,"【旅行日程表】（WORDテンプレート）１泊２日・ヨコ用紙・フロー形式"]
[null,null,null,"https://plus-pm.jp/blog/trip-schedule-word-2days/?ref=excel_template"]
[null,null,"【旅行日程表】（WORDテンプレート）２泊３日・ヨコ用紙・フロー形式"]
[null,null,null,"https://plus-pm.jp/blog/trip-schedule-word-3days/?ref=excel_template"]
[null,null,"【旅行日程表】（WORDテンプレート）３泊４日・ヨコ用紙・フロー形式"]
[null,null,null,"https://plus-pm.jp/blog/trip-schedule-word-4days/?ref=excel_template"]
[null,null,"【旅行日程表】（WORDテンプレート）４泊５日・ヨコ用紙・フロー形式"]
[null,null,null,"https://plus-pm.jp/blog/trip-schedule-word-5days/?ref=excel_template"]
[]
[null,"□議事録"]
[null,null,"【議事録】Excel・議事進行形式"]
[null,null,null,"https://plus-pm.jp/blog/minutes-excel/?ref=excel_template"]
[null,null,"【議事録】Excel・結論と議事"]
[null,null,null,"https://plus-pm.jp/blog/minutes-excel-conclusion-minutes/?ref=excel_template"]
[null,null,"【議事録】Excel・発言録"]
[null,null,null,"https://plus-pm.jp/blog/minutes-excel-minutes/?ref=excel_template"]
[null,null,"【議事録】Excel・決定事項リスト"]
[null,null,null,"https://plus-pm.jp/blog/minutes-excel-decisions/?ref=excel_template"]
[null,null,"【議事録】Excel・Ｑ＆Ａ方式"]
[null,null,null,"https://plus-pm.jp/blog/minutes-excel-issue-conclusion/?ref=excel_template"]
[]
[null,"□作業手順書"]
[null,null,"【作業手順書】Excel・手順リスト"]
[null,null,null,"https://plus-pm.jp/blog/manual-excel-operation-list/?ref=excel_template"]
[null,null,"【作業手順書】Excel・写真付き手順"]
[null,null,null,"https://plus-pm.jp/blog/manual-excel-image-list/?ref=excel_template"]
[]
[null,"□業務フロー図"]
[null,null,"【業務フロー図】縦書き・無料・マニュアル作成向け"]
[null,null,null,"https://plus-pm.jp/blog/work-flow-excel-vertical-swim-lane/?ref=excel_template"]
[null,null,"【業務フロー図】ヨコ書き・無料・マニュアル作成向け"]
[null,null,null,"https://plus-pm.jp/blog/work-flow-excel-horizontal-swim-lane/?ref=excel_template"]
[null,null,"【作業工程表】（POWERPOINTテンプレート）ヨコ書き・無料・提案資料向け"]
[null,null,null,"https://plus-pm.jp/blog/work-flow-power-point-horizontal-work-process/?ref=excel_template"]
[]
[null,"□業務日報"]
[null,null,"【業務日報】個人・汎用・承認あり"]
[null,null,null,"https://plus-pm.jp/blog/daily-report-excel-general-purpose/?ref=excel_template"]
[null,null,"【業務日報】個人・フリーフォーマット・承認あり"]
[null,null,null,"https://plus-pm.jp/blog/daily-report-excel-free-format/?ref=excel_template"]
[null,null,"【業務日報】個人・タイムテーブル形式・承認あり"]
[null,null,null,"https://plus-pm.jp/blog/daily-report-excel-time-table/?ref=excel_template"]
[]
[null,"□組織図"]
[null,null,"【組織図】（POWERPOINTテンプレート）Ａ４ヨコ用紙"]
[null,null,null,"https://plus-pm.jp/blog/organization-chart-power-point-horizontal/?ref=excel_template"]
[null,null,"【組織図】（POWERPOINTテンプレート）Ａ４タテ用紙"]
[null,null,null,"https://plus-pm.jp/blog/organization-chart-power-point-vertical/?ref=excel_template"]
[null,null,"【組織図】（POWERPOINTテンプレート）Ａ４ヨコ用紙・部署部門長名入り"]
[null,null,null,"https://plus-pm.jp/blog/organization-chart-power-point-horizontal-with-manager/?ref=excel_template"]
[]
[null,"□プロジェクト体制図"]
[null,null,"【プロジェクト体制図】（POWERPOINTテンプレート）Ａ４ヨコ用紙・複数部門"]
[null,null,null,"https://plus-pm.jp/blog/project-structure-diagram-power-point-multiple-department/?ref=excel_template"]
[null,null,"【プロジェクト体制図】（POWERPOINTテンプレート）Ａ４ヨコ用紙・複数社"]
[null,null,null,"https://plus-pm.jp/blog/project-structure-diagram-power-point-multiple-companies/?ref=excel_template"]
[]
[null,"□連絡網"]
[null,null,"【緊急連絡網】Ａ４ヨコ・７列・３５人・チェック機能付き"]
[null,null,null,"https://plus-pm.jp/blog/contact-network-excel-horizontal/?ref=excel_template"]
[null,null,"【緊急連絡網】Ａ４タテ・４列・３２人・チェック機能付き"]
[null,null,null,"https://plus-pm.jp/blog/contact-network-excel-vertical/?ref=excel_template"]
[null,null,"【クラス連絡網】（POWERPOINTテンプレート）A4ヨコ書き・６列・３６人"]
[null,null,null,"https://plus-pm.jp/blog/contact-network-power-point-horizontal/?ref=excel_template"]
[null,null,"【クラス連絡網】（POWERPOINTテンプレート）A4タテ書き・５列・４０人"]
[null,null,null,"https://plus-pm.jp/blog/contact-network-power-point-vertical/?ref=excel_template"]
[]
[null,"□履歴書"]
[null,null,"【履歴書テンプレート】（EXCEL・PDFテンプレート）作例付き・入力補助あり"]
[null,null,null,"https://plus-pm.jp/blog/resume-jis-minor-excel-pdf/?ref=excel_template"]
[null,null,"【職務経歴書】（WORDテンプレート）時系列の業務リスト・エンジニア向き・サンプル付き"]
[null,null,null,"https://plus-pm.jp/blog/curriculum-vitae-word-project-list/?ref=excel_template"]
[null,null,"【職務経歴書】（WORDテンプレート）職種・職務リスト・サンプル付き"]
[null,null,null,"https://plus-pm.jp/blog/curriculum-vitae-word-occupation-list/?ref=excel_template"]
[null,null,"【履歴書送付状】（WORDテンプレート）履歴書同封・職務経歴書同封"]
[null,null,null,"https://plus-pm.jp/blog/resume-transmittal-word/?ref=excel_template"]
[null,null,"【入学・卒業年度早見表】（EXCELデータ付き）学生／アルバイト／新卒／第二新卒向け"]
[null,null,null,"https://plus-pm.jp/blog/entrance-graduation-year-for-date-of-birth/?ref=excel_template"]
[null,null,"【履歴書向け西暦・和暦早見表】平成80年対応・満年齢・干支付き・江戸時代対応"]
[null,null,null,"https://plus-pm.jp/blog/western-japanese-calendar-mapping/?ref=excel_template"]
[]
[null,"□掃除チェック表"]
[null,null,"【トイレ掃除チェック表】１日分・時間毎"]
[null,null,null,"https://plus-pm.jp/blog/restroom-cleaning-check-sheet-excel-daily/?ref=excel_template"]
[null,null,"【トイレ掃除チェック表】１週間用・時間毎"]
[null,null,null,"https://plus-pm.jp/blog/restroom-cleaning-check-sheet-excel-weekly/?ref=excel_template"]
[null,null,"【トイレ掃除チェック表】１ヶ月用"]
[null,null,null,"https://plus-pm.jp/blog/restroom-cleaning-check-sheet-excel-monthly/?ref=excel_template"]
[]
[null,"□座席表"]
[null,null,"【クラス座席表】４列・２４席・名簿選択式・チェック機能付き・属性チェック付き"]
[null,null,null,"https://plus-pm.jp/blog/seating-chart-excel-for-classroom-4-columns/?ref=excel_template"]
[null,null,"【クラス座席表】５列・３５席・名簿選択式・チェック機能付き・属性チェック付き"]
[null,null,null,"https://plus-pm.jp/blog/seating-chart-excel-for-classroom-5-columns/?ref=excel_template"]
[null,null,"【クラス座席表】６列・４２席・名簿選択式・チェック機能付き・属性チェック付き"]
[null,null,null,"https://plus-pm.jp/blog/seating-chart-excel-for-classroom-6-columns/?ref=excel_template"]
[null,null,"【クラス座席表】７列・４９席・名簿選択式・チェック機能付き・属性チェック付き"]
[null,null,null,"https://plus-pm.jp/blog/seating-chart-excel-for-classroom-7-columns/?ref=excel_template"]
[null,null,"【バス座席表】大型バス・４５席（補助席込み５５席）・４９席（補助席込み６０席）"]
[null,null,null,"https://plus-pm.jp/blog/seating-chart-excel-for-large-bus/?ref=excel_template"]
[null,null,"【バス座席表】中型バス・２８席・補助席なし"]
[null,null,null,"https://plus-pm.jp/blog/seating-chart-excel-for-medium-bus/?ref=excel_template"]
[null,null,"【バス座席表】マイクロバス・２１席（補助席込み２７席）・１８席（補助席込み２３席）"]
[null,null,null,"https://plus-pm.jp/blog/seating-chart-excel-for-small-bus/?ref=excel_template"]

{"sheet":"【その他】ノウハウ集","index":9,"n_rows":19,"n_cols":3,"rows_kept":19,"cut":false,"hidden":false,"merged":[]}
["■ビジネスで必須のノウハウを共有しています"]
[]
[null,"【本質が分かる】業務日報の書き方・３つのテーマ～例文は無意味・新人さんでも量産可能～"]
[null,null,"https://plus-pm.jp/blog/daily-report-how-to/?ref=excel_template"]
[]
[null,"【プロジェクト管理】ガントチャートってなに？作成法のすべてが分かる"]
[null,null,"https://plus-pm.jp/blog/gantt/?ref=excel_template"]
[]
[null,"【プロジェクト管理】WBSとは何か？作り方・運用の注意点をカンタンに解説"]
[null,null,"https://plus-pm.jp/blog/wbs/?ref=excel_template"]
[]
[null,"【ロジカルシンキング】MECE（ミーシー）絶対分かる・活用できる・論理的思考で問題解決"]
[null,null,"https://plus-pm.jp/blog/mece/?ref=excel_template"]
[]
[null,"【TODOリスト】TODOリストの作り方・活用ポイント・注意点・３つのおすすめツール（おまけ付き）"]
[null,null,"https://plus-pm.jp/blog/todo-list/?ref=excel_template"]
[]
[null,"【ノウハウ付き】実務に役立つ初めてのプロジェクト管理用語５０選"]
[null,null,"https://plus-pm.jp/blog/project-management-glossary/?ref=excel_template"]